[Event "Titled Tuesday Blitz July 18 Early 2023"]
[White "Colas, Joshua"]
[Black "Phillips, Rene"]
[WhiteFideId "2044447"]
[BlackFideId "2056275"]
[WhiteElo "2581"]
[BlackElo "2051"]
[Result "1-0"]
[Round "3"]
[TimeControl "180+2"]
[Date "2023.07.18"]
[WhiteClock "0:01:25"]
[BlackClock "0:00:05"]
[Board "171"]

1. d4 {[%clk 0:02:37]}  Nc6 {[%clk 0:02:55]} 2. Nc3 {[%clk 0:02:38]}  e5 {[%clk 0:02:53]} 3. d5 {[%clk 0:02:23]}  Nce7 {[%clk 0:02:51]} 4. e4 {[%clk 0:02:15]}  Ng6 {[%clk 0:02:48]} 5. Be3 {[%clk 0:02:13]}  Bb4 {[%clk 0:02:47]} 6. Ne2 {[%clk 0:02:10]}  Nf6 {[%clk 0:02:46]} 7. f3 {[%clk 0:02:10]}  d6 {[%clk 0:02:44]} 8. a3 {[%clk 0:02:09]}  Ba5 {[%clk 0:02:43]} 9. Qd2 {[%clk 0:02:07]}  Bb6 {[%clk 0:02:34]} 10. O-O-O {[%clk 0:02:00]}  h6 {[%clk 0:02:28]} 11. g3 {[%clk 0:01:56]}  O-O {[%clk 0:02:24]} 12. Bg2 {[%clk 0:01:55]}  Bd7 {[%clk 0:02:23]} 13. h4 {[%clk 0:01:50]}  Nh5 {[%clk 0:02:02]} 14. Bxh6 {[%clk 0:01:30]}  gxh6 {[%clk 0:01:52]} 15. Qxh6 {[%clk 0:01:31]}  Nhf4 {[%clk 0:01:20]} 16. gxf4 {[%clk 0:01:26]}  Nxf4 {[%clk 0:01:06]} 17. Nxf4 {[%clk 0:01:25]}  Be3+ {[%clk 0:01:05]} 18. Kb1 {[%clk 0:01:25]}  Bxf4 {[%clk 0:01:05]} 19. Qh5 {[%clk 0:01:25]}  Qf6 {[%clk 0:00:54]} 20. Bh3 {[%clk 0:01:25]}  Bxh3 {[%clk 0:00:05]} 21. Rdg1+ {[%clk 0:01:25]} 1-0


[Site "https://www.chess.com"]

[Event "Titled Tuesday Blitz July 18 Early 2023"]
[White "Shubenkova, Veronika"]
[Black "Travadon, Loic"]
[WhiteFideId "44124040"]
[BlackFideId "26092131"]
[WhiteElo "2545"]
[BlackElo "2284"]
[Result "0-1"]
[Round "3"]
[TimeControl "180+2"]
[Date "2023.07.18"]
[WhiteClock "0:01:01"]
[BlackClock "0:00:32"]
[Board "173"]

1. e4 {[%clk 0:01:43]}  e5 {[%clk 0:02:57]} 2. Nf3 {[%clk 0:01:43]}  Nc6 {[%clk 0:02:56]} 3. Bb5 {[%clk 0:01:43]}  Nf6 {[%clk 0:02:50]} 4. Bxc6 {[%clk 0:01:43]}  dxc6 {[%clk 0:02:44]} 5. O-O {[%clk 0:01:44]}  Bd6 {[%clk 0:02:37]} 6. d4 {[%clk 0:01:44]}  Nxe4 {[%clk 0:02:08]} 7. dxe5 {[%clk 0:01:41]}  Bc5 {[%clk 0:02:06]} 8. Qe2 {[%clk 0:01:41]}  Bf5 {[%clk 0:02:01]} 9. Be3 {[%clk 0:01:38]}  O-O {[%clk 0:01:58]} 10. Bxc5 {[%clk 0:01:34]}  Nxc5 {[%clk 0:01:59]} 11. Nc3 {[%clk 0:01:33]}  Ne6 {[%clk 0:01:58]} 12. Rad1 {[%clk 0:01:33]}  Qe7 {[%clk 0:01:58]} 13. g3 {[%clk 0:01:33]}  Rad8 {[%clk 0:01:56]} 14. Rxd8 {[%clk 0:01:31]}  Rxd8 {[%clk 0:01:57]} 15. Rd1 {[%clk 0:01:32]}  Bg4 {[%clk 0:01:48]} 16. Rxd8+ {[%clk 0:01:31]}  Qxd8 {[%clk 0:01:49]} 17. Qe4 {[%clk 0:01:31]}  Bxf3 {[%clk 0:01:42]} 18. Qxf3 {[%clk 0:01:31]}  Qd2 {[%clk 0:01:42]} 19. Qf5 {[%clk 0:01:17]}  Qc1+ {[%clk 0:01:23]} 20. Kg2 {[%clk 0:01:16]}  Qxb2 {[%clk 0:01:21]} 21. Ne4 {[%clk 0:01:14]}  Qd4 {[%clk 0:01:16]} 22. h4 {[%clk 0:01:08]}  Qd5 {[%clk 0:01:16]} 23. Kh2 {[%clk 0:01:06]}  Qxa2 {[%clk 0:01:07]} 24. h5 {[%clk 0:01:04]}  Kf8 {[%clk 0:01:07]} 25. h6 {[%clk 0:01:04]}  g6 {[%clk 0:00:51]} 26. Qf6 {[%clk 0:01:03]}  Qd5 {[%clk 0:00:38]} 27. c4 {[%clk 0:01:03]}  Qxe4 {[%clk 0:00:36]} 28. Qh8+ {[%clk 0:01:03]}  Ke7 {[%clk 0:00:35]} 29. Qf6+ {[%clk 0:01:03]}  Ke8 {[%clk 0:00:34]} 30. Qh8+ {[%clk 0:01:03]}  Nf8 {[%clk 0:00:33]} 31. Qf6 {[%clk 0:01:01]}  Qf5 {[%clk 0:00:32]} 0-1


[Site "https://www.chess.com"]

[Event "Titled Tuesday Blitz July 18 Early 2023"]
[White "Borrmann, Laurenz"]
[Black "lgabi"]
[WhiteFideId "312187930"]
[WhiteElo "2535"]
[BlackElo "2283"]
[Result "0-1"]
[Round "3"]
[TimeControl "180+2"]
[Date "2023.07.18"]
[WhiteClock "0:00:00"]
[BlackClock "0:00:18"]
[Board "174"]

1. e4 {[%clk 0:02:59]}  g6 {[%clk 0:02:58]} 2. d4 {[%clk 0:02:59]}  Bg7 {[%clk 0:02:57]} 3. Nc3 {[%clk 0:02:59]}  d6 {[%clk 0:02:56]} 4. Be3 {[%clk 0:03:00]}  a6 {[%clk 0:02:56]} 5. h4 {[%clk 0:02:54]}  h5 {[%clk 0:02:55]} 6. Nh3 {[%clk 0:02:44]}  b5 {[%clk 0:02:50]} 7. Ng5 {[%clk 0:02:41]}  Bb7 {[%clk 0:02:43]} 8. g4 {[%clk 0:02:11]}  hxg4 {[%clk 0:02:10]} 9. Qxg4 {[%clk 0:02:12]}  Nf6 {[%clk 0:02:09]} 10. Qg2 {[%clk 0:02:08]}  Nbd7 {[%clk 0:02:03]} 11. a4 {[%clk 0:01:42]}  b4 {[%clk 0:02:02]} 12. Bc4 {[%clk 0:01:42]}  e6 {[%clk 0:01:34]} 13. Bxe6 {[%clk 0:01:02]}  fxe6 {[%clk 0:01:33]} 14. Nxe6 {[%clk 0:01:03]}  Qe7 {[%clk 0:01:33]} 15. Nd5 {[%clk 0:00:47]}  Nxd5 {[%clk 0:01:10]} 16. exd5 {[%clk 0:00:46]}  Qxe6 {[%clk 0:01:04]} 17. dxe6 {[%clk 0:00:36]}  Bxg2 {[%clk 0:01:02]} 18. exd7+ {[%clk 0:00:30]}  Kxd7 {[%clk 0:01:03]} 19. Rg1 {[%clk 0:00:30]}  Be4 {[%clk 0:01:01]} 20. O-O-O {[%clk 0:00:21]}  Rxh4 {[%clk 0:00:54]} 21. Rde1 {[%clk 0:00:21]}  Re8 {[%clk 0:00:50]} 22. Bg5 {[%clk 0:00:16]}  Rhh8 {[%clk 0:00:46]} 23. f3 {[%clk 0:00:08]}  Bf5 {[%clk 0:00:46]} 24. c3 {[%clk 0:00:07]}  b3 {[%clk 0:00:40]} 25. Kd2 {[%clk 0:00:05]}  Rh2+ {[%clk 0:00:39]} 26. Kd1 {[%clk 0:00:03]}  Rxe1+ {[%clk 0:00:28]} 27. Rxe1 {[%clk 0:00:03]}  Bf8 {[%clk 0:00:22]} 28. Bd2 {[%clk 0:00:02]}  Be7 {[%clk 0:00:18]} 29. c4 {[%clk 0:00:00]}  c6 {[%clk 0:00:18]} 0-1


[Site "https://www.chess.com"]

[Event "Titled Tuesday Blitz July 18 Early 2023"]
[White "Spichkin, Alexander"]
[Black "ArchibaldCerveza29"]
[WhiteFideId "4144074"]
[WhiteElo "2278"]
[BlackElo "2505"]
[Result "1-0"]
[Round "3"]
[TimeControl "180+2"]
[Date "2023.07.18"]
[WhiteClock "0:01:28"]
[BlackClock "0:00:00"]
[Board "175"]

1. f4 {[%clk 0:03:00]}  d5 {[%clk 0:02:58]} 2. Nf3 {[%clk 0:02:59]}  Nh6 {[%clk 0:02:58]} 3. d3 {[%clk 0:02:58]}  e6 {[%clk 0:02:43]} 4. e3 {[%clk 0:02:57]}  Nf5 {[%clk 0:02:42]} 5. Be2 {[%clk 0:02:58]}  c5 {[%clk 0:02:42]} 6. O-O {[%clk 0:02:58]}  Be7 {[%clk 0:02:40]} 7. Nc3 {[%clk 0:02:58]}  Nc6 {[%clk 0:02:36]} 8. e4 {[%clk 0:02:57]}  dxe4 {[%clk 0:02:28]} 9. dxe4 {[%clk 0:02:57]}  Qxd1 {[%clk 0:02:29]} 10. Rxd1 {[%clk 0:02:57]}  Nfd4 {[%clk 0:02:29]} 11. Bb5 {[%clk 0:02:54]}  Nxf3+ {[%clk 0:02:16]} 12. gxf3 {[%clk 0:02:53]}  Bd7 {[%clk 0:02:17]} 13. Be3 {[%clk 0:02:50]}  Rc8 {[%clk 0:01:58]} 14. Rd2 {[%clk 0:02:50]}  Nb8 {[%clk 0:01:48]} 15. Rad1 {[%clk 0:02:48]}  Bxb5 {[%clk 0:01:42]} 16. Nxb5 {[%clk 0:02:48]}  a6 {[%clk 0:01:40]} 17. Nc3 {[%clk 0:02:40]}  O-O {[%clk 0:01:34]} 18. Kf2 {[%clk 0:02:37]}  b5 {[%clk 0:01:20]} 19. e5 {[%clk 0:02:27]}  f5 {[%clk 0:01:04]} 20. exf6 {[%clk 0:02:17]}  Bxf6 {[%clk 0:00:57]} 21. Ne4 {[%clk 0:02:17]}  Be7 {[%clk 0:00:44]} 22. a4 {[%clk 0:02:11]}  c4 {[%clk 0:00:31]} 23. axb5 {[%clk 0:02:10]}  axb5 {[%clk 0:00:32]} 24. Ba7 {[%clk 0:02:07]}  Rxf4 {[%clk 0:00:26]} 25. Bxb8 {[%clk 0:02:06]}  Rxb8 {[%clk 0:00:27]} 26. Rd7 {[%clk 0:02:03]}  Bf6 {[%clk 0:00:20]} 27. Ke3 {[%clk 0:02:00]}  Rh4 {[%clk 0:00:17]} 28. Nxf6+ {[%clk 0:01:54]}  gxf6 {[%clk 0:00:16]} 29. Rg1+ {[%clk 0:01:54]}  Kf8 {[%clk 0:00:15]} 30. Rgg7 {[%clk 0:01:55]}  Rh6 {[%clk 0:00:13]} 31. Rdf7+ {[%clk 0:01:52]}  Ke8 {[%clk 0:00:13]} 32. Rxh7 {[%clk 0:01:52]}  Rxh7 {[%clk 0:00:12]} 33. Rxh7 {[%clk 0:01:53]}  Rb6 {[%clk 0:00:12]} 34. c3 {[%clk 0:01:47]}  Rd6 {[%clk 0:00:12]} 35. Rb7 {[%clk 0:01:46]}  Rd5 {[%clk 0:00:12]} 36. h4 {[%clk 0:01:45]}  Rh5 {[%clk 0:00:12]} 37. f4 {[%clk 0:01:44]}  f5 {[%clk 0:00:11]} 38. Kd4 {[%clk 0:01:43]}  Rxh4 {[%clk 0:00:10]} 39. Ke5 {[%clk 0:01:43]}  Rh2 {[%clk 0:00:07]} 40. Rxb5 {[%clk 0:01:43]}  Re2+ {[%clk 0:00:08]} 41. Kf6 {[%clk 0:01:40]}  Re4 {[%clk 0:00:05]} 42. Kg5 {[%clk 0:01:32]}  Ke7 {[%clk 0:00:04]} 43. Rc5 {[%clk 0:01:31]}  Kd6 {[%clk 0:00:04]} 44. Rc8 {[%clk 0:01:31]}  Kd5 {[%clk 0:00:03]} 45. Rd8+ {[%clk 0:01:29]}  Kc6 {[%clk 0:00:03]} 46. Rd2 {[%clk 0:01:25]}  Kb5 {[%clk 0:00:02]} 47. Rf2 {[%clk 0:01:25]}  Ka4 {[%clk 0:00:02]} 48. Kf6 {[%clk 0:01:26]}  Kb3 {[%clk 0:00:02]} 49. Ke7 {[%clk 0:01:26]}  Ka4 {[%clk 0:00:02]} 50. Kd6 {[%clk 0:01:27]}  Kb3 {[%clk 0:00:02]} 51. Kc6 {[%clk 0:01:27]}  Ka4 {[%clk 0:00:02]} 52. Kc5 {[%clk 0:01:28]}  Kb3 {[%clk 0:00:00]} 53. Kb5 {[%clk 0:01:28]} 1-0


[Site "https://www.chess.com"]

[Event "Titled Tuesday Blitz July 18 Early 2023"]
[White "Ansh M Shah"]
[Black "Magallanes, Rey Jomar"]
[WhiteFideId "25033379"]
[BlackFideId "5205948"]
[WhiteElo "2504"]
[BlackElo "2273"]
[Result "1-0"]
[Round "3"]
[TimeControl "180+2"]
[Date "2023.07.18"]
[WhiteClock "0:01:10"]
[BlackClock "0:01:07"]
[Board "176"]

1. d4 {[%clk 0:02:59]}  d5 {[%clk 0:02:56]} 2. c4 {[%clk 0:03:00]}  e6 {[%clk 0:02:56]} 3. g3 {[%clk 0:03:00]}  Nf6 {[%clk 0:02:56]} 4. Bg2 {[%clk 0:03:01]}  Be7 {[%clk 0:02:55]} 5. Nf3 {[%clk 0:03:02]}  O-O {[%clk 0:02:56]} 6. O-O {[%clk 0:03:03]}  c6 {[%clk 0:02:56]} 7. Qc2 {[%clk 0:03:02]}  b6 {[%clk 0:02:57]} 8. Nbd2 {[%clk 0:03:02]}  c5 {[%clk 0:02:57]} 9. e4 {[%clk 0:03:03]}  Nc6 {[%clk 0:02:56]} 10. cxd5 {[%clk 0:02:59]}  exd5 {[%clk 0:02:50]} 11. dxc5 {[%clk 0:02:44]}  bxc5 {[%clk 0:02:49]} 12. exd5 {[%clk 0:02:41]}  Nxd5 {[%clk 0:02:48]} 13. a3 {[%clk 0:02:34]}  Ba6 {[%clk 0:02:47]} 14. Rd1 {[%clk 0:02:32]}  Qc7 {[%clk 0:02:40]} 15. Nc4 {[%clk 0:02:23]}  Rfd8 {[%clk 0:02:33]} 16. Ng5 {[%clk 0:02:16]}  Nf6 {[%clk 0:02:10]} 17. Bf4 {[%clk 0:02:13]}  Qc8 {[%clk 0:02:08]} 18. Rxd8+ {[%clk 0:02:03]}  Bxd8 {[%clk 0:02:06]} 19. Nxf7 {[%clk 0:01:54]}  Qe6 {[%clk 0:01:57]} 20. Nfd6 {[%clk 0:01:38]}  Nd4 {[%clk 0:01:56]} 21. Qa4 {[%clk 0:01:31]}  Bxc4 {[%clk 0:01:49]} 22. Qxc4 {[%clk 0:01:27]}  Qxc4 {[%clk 0:01:49]} 23. Nxc4 {[%clk 0:01:28]}  Rc8 {[%clk 0:01:48]} 24. Re1 {[%clk 0:01:18]}  Kf7 {[%clk 0:01:19]} 25. Nd6+ {[%clk 0:01:18]}  Kg6 {[%clk 0:01:14]} 26. Nxc8 {[%clk 0:01:16]}  Ba5 {[%clk 0:01:14]} 27. Re7 {[%clk 0:01:10]}  Bd8 {[%clk 0:01:11]} 28. Rxa7 {[%clk 0:01:09]}  Ne2+ {[%clk 0:01:10]} 29. Kf1 {[%clk 0:01:09]}  Nxf4 {[%clk 0:01:07]} 30. gxf4 {[%clk 0:01:10]} 1-0


[Site "https://www.chess.com"]

[Event "Titled Tuesday Blitz July 18 Early 2023"]
[White "Zampronha, Wladimir Camilo"]
[Black "Ljukin, Sergei"]
[WhiteFideId "2103087"]
[BlackFideId "14102200"]
[WhiteElo "2273"]
[BlackElo "2484"]
[Result "1-0"]
[Round "3"]
[TimeControl "180+2"]
[Date "2023.07.18"]
[WhiteClock "0:00:15"]
[BlackClock "0:00:00"]
[Board "178"]

1. e4 {[%clk 0:03:00]}  e6 {[%clk 0:02:52]} 2. d4 {[%clk 0:02:58]}  d5 {[%clk 0:02:51]} 3. Nc3 {[%clk 0:02:57]}  Bb4 {[%clk 0:02:51]} 4. e5 {[%clk 0:02:57]}  Ne7 {[%clk 0:02:51]} 5. Qg4 {[%clk 0:02:51]}  c5 {[%clk 0:02:50]} 6. a3 {[%clk 0:02:46]}  Bxc3+ {[%clk 0:02:50]} 7. bxc3 {[%clk 0:02:47]}  Qc7 {[%clk 0:02:50]} 8. Qxg7 {[%clk 0:02:44]}  Rg8 {[%clk 0:02:49]} 9. Qxh7 {[%clk 0:02:45]}  cxd4 {[%clk 0:02:50]} 10. Ne2 {[%clk 0:02:45]}  Nbc6 {[%clk 0:02:50]} 11. f4 {[%clk 0:02:45]}  Bd7 {[%clk 0:02:51]} 12. Qd3 {[%clk 0:02:45]}  dxc3 {[%clk 0:02:50]} 13. Nxc3 {[%clk 0:02:44]}  Qa5 {[%clk 0:02:50]} 14. Bd2 {[%clk 0:02:38]}  Nb4 {[%clk 0:02:49]} 15. Qh7 {[%clk 0:02:27]}  Rg6 {[%clk 0:02:49]} 16. Bd3 {[%clk 0:02:14]}  Nxd3+ {[%clk 0:02:41]} 17. cxd3 {[%clk 0:02:15]}  Qa6 {[%clk 0:02:37]} 18. Qh3 {[%clk 0:01:58]}  O-O-O {[%clk 0:02:36]} 19. Kf2 {[%clk 0:01:34]}  Qb6+ {[%clk 0:02:06]} 20. Ke2 {[%clk 0:01:25]}  Rdg8 {[%clk 0:01:54]} 21. Rhg1 {[%clk 0:01:23]}  Nf5 {[%clk 0:01:48]} 22. g3 {[%clk 0:00:53]}  Nd4+ {[%clk 0:01:42]} 23. Kd1 {[%clk 0:00:53]}  Qb3+ {[%clk 0:01:36]} 24. Ke1 {[%clk 0:00:53]}  Nf3+ {[%clk 0:00:34]} 25. Ke2 {[%clk 0:00:52]}  Nxd2 {[%clk 0:00:21]} 26. Rac1 {[%clk 0:00:44]}  Bc6 {[%clk 0:00:10]} 27. Kxd2 {[%clk 0:00:42]}  Kb8 {[%clk 0:00:09]} 28. Qh7 {[%clk 0:00:33]}  R6g7 {[%clk 0:00:07]} 29. Qh4 {[%clk 0:00:31]}  d4 {[%clk 0:00:07]} 30. Ne2 {[%clk 0:00:31]}  Ba4 {[%clk 0:00:05]} 31. Qe7 {[%clk 0:00:25]}  Qb2+ {[%clk 0:00:05]} 32. Ke1 {[%clk 0:00:25]}  Rh7 {[%clk 0:00:03]} 33. h4 {[%clk 0:00:24]}  Rhg7 {[%clk 0:00:03]} 34. Kf2 {[%clk 0:00:21]}  Qd2 {[%clk 0:00:00]} 35. Qd6+ {[%clk 0:00:15]} 1-0


[Site "https://www.chess.com"]

[Event "Titled Tuesday Blitz July 18 Early 2023"]
[White "kuanysh1981"]
[Black "arturdailima"]
[WhiteElo "2476"]
[BlackElo "2273"]
[Result "1-0"]
[Round "3"]
[TimeControl "180+2"]
[Date "2023.07.18"]
[WhiteClock "0:02:11"]
[BlackClock "0:01:34"]
[Board "179"]

1. d4 {[%clk 0:03:00]}  Nf6 {[%clk 0:03:00]} 2. Nf3 {[%clk 0:02:59]}  c5 {[%clk 0:02:54]} 3. d5 {[%clk 0:02:56]}  d6 {[%clk 0:02:53]} 4. g3 {[%clk 0:02:50]}  e5 {[%clk 0:02:52]} 5. Bg2 {[%clk 0:02:47]}  Be7 {[%clk 0:02:52]} 6. c4 {[%clk 0:02:47]}  O-O {[%clk 0:02:52]} 7. Nc3 {[%clk 0:02:47]}  a6 {[%clk 0:02:53]} 8. a4 {[%clk 0:02:47]}  Ne8 {[%clk 0:02:43]} 9. e4 {[%clk 0:02:43]}  f5 {[%clk 0:02:42]} 10. O-O {[%clk 0:02:41]}  Nf6 {[%clk 0:02:41]} 11. Ng5 {[%clk 0:02:37]}  fxe4 {[%clk 0:02:30]} 12. Ncxe4 {[%clk 0:02:35]}  Nxe4 {[%clk 0:02:30]} 13. Nxe4 {[%clk 0:02:36]}  Bf5 {[%clk 0:02:29]} 14. Bd2 {[%clk 0:02:34]}  Nd7 {[%clk 0:02:25]} 15. b4 {[%clk 0:02:34]}  b6 {[%clk 0:02:24]} 16. bxc5 {[%clk 0:02:31]}  bxc5 {[%clk 0:02:24]} 17. a5 {[%clk 0:02:30]}  h6 {[%clk 0:02:20]} 18. Rb1 {[%clk 0:02:29]}  Qc7 {[%clk 0:02:17]} 19. Qa4 {[%clk 0:02:27]}  Rfb8 {[%clk 0:02:08]} 20. Qc6 {[%clk 0:02:27]}  Qxc6 {[%clk 0:01:59]} 21. dxc6 {[%clk 0:02:28]}  Nf6 {[%clk 0:01:56]} 22. Nxf6+ {[%clk 0:02:25]}  gxf6 {[%clk 0:01:53]} 23. Rb6 {[%clk 0:02:25]}  Bd8 {[%clk 0:01:38]} 24. c7 {[%clk 0:02:16]}  Bxc7 {[%clk 0:01:37]} 25. Bxa8 {[%clk 0:02:11]}  Bxb6 {[%clk 0:01:34]} 26. Bd5+ {[%clk 0:02:11]} 1-0


[Site "https://www.chess.com"]

[Event "Titled Tuesday Blitz July 18 Early 2023"]
[White "DCacheiro"]
[Black "Boder, Jan"]
[BlackFideId "16243226"]
[WhiteElo "2469"]
[BlackElo "2266"]
[Result "1/2-1/2"]
[Round "3"]
[TimeControl "180+2"]
[Date "2023.07.18"]
[WhiteClock "0:00:12"]
[BlackClock "0:00:10"]
[Board "181"]

1. e4 {[%clk 0:03:00]}  e5 {[%clk 0:02:55]} 2. Nf3 {[%clk 0:03:00]}  Nc6 {[%clk 0:02:49]} 3. Bc4 {[%clk 0:02:59]}  Nf6 {[%clk 0:02:48]} 4. d3 {[%clk 0:02:57]}  Bc5 {[%clk 0:02:47]} 5. c3 {[%clk 0:02:57]}  a6 {[%clk 0:02:46]} 6. O-O {[%clk 0:02:57]}  d6 {[%clk 0:02:45]} 7. a4 {[%clk 0:02:57]}  Ba7 {[%clk 0:02:43]} 8. Re1 {[%clk 0:02:58]}  O-O {[%clk 0:02:43]} 9. h3 {[%clk 0:02:58]}  Re8 {[%clk 0:02:42]} 10. Nbd2 {[%clk 0:02:57]}  Be6 {[%clk 0:02:42]} 11. Bxe6 {[%clk 0:02:56]}  Rxe6 {[%clk 0:02:43]} 12. b4 {[%clk 0:02:56]}  h6 {[%clk 0:02:42]} 13. Bb2 {[%clk 0:02:55]}  Ne7 {[%clk 0:02:41]} 14. Nf1 {[%clk 0:02:54]}  Ng6 {[%clk 0:02:42]} 15. c4 {[%clk 0:02:53]}  a5 {[%clk 0:02:39]} 16. bxa5 {[%clk 0:02:41]}  Bc5 {[%clk 0:01:46]} 17. Bc3 {[%clk 0:02:35]}  Nf4 {[%clk 0:01:32]} 18. Rb1 {[%clk 0:01:59]}  N6h5 {[%clk 0:01:15]} 19. d4 {[%clk 0:01:40]}  Rg6 {[%clk 0:01:09]} 20. Ne3 {[%clk 0:01:26]}  exd4 {[%clk 0:01:01]} 21. Bxd4 {[%clk 0:01:14]}  Bxd4 {[%clk 0:00:44]} 22. Qxd4 {[%clk 0:01:15]}  Nxh3+ {[%clk 0:00:30]} 23. Kf1 {[%clk 0:01:14]}  Ng5 {[%clk 0:00:24]} 24. Nxg5 {[%clk 0:00:41]}  Qxg5 {[%clk 0:00:25]} 25. Qd5 {[%clk 0:00:39]}  Qf4 {[%clk 0:00:19]} 26. Qxh5 {[%clk 0:00:32]}  Qxe4 {[%clk 0:00:17]} 27. Qf5 {[%clk 0:00:30]}  Qh4 {[%clk 0:00:16]} 28. g3 {[%clk 0:00:19]}  Qh1+ {[%clk 0:00:13]} 29. Ke2 {[%clk 0:00:19]}  Qc6 {[%clk 0:00:13]} 30. Qd5 {[%clk 0:00:20]}  Qxa4 {[%clk 0:00:10]} 31. Rxb7 {[%clk 0:00:16]}  Rxa5 {[%clk 0:00:09]} 32. Rb8+ {[%clk 0:00:16]}  Kh7 {[%clk 0:00:08]} 33. Qxf7 {[%clk 0:00:16]}  Rf6 {[%clk 0:00:05]} 34. Qg8+ {[%clk 0:00:16]}  Kg6 {[%clk 0:00:06]} 35. Qe8+ {[%clk 0:00:17]}  Qxe8 {[%clk 0:00:05]} 36. Rxe8 {[%clk 0:00:18]}  Ra2+ {[%clk 0:00:05]} 37. Kd3 {[%clk 0:00:16]}  Rfxf2 {[%clk 0:00:06]} 38. Re7 {[%clk 0:00:14]}  c6 {[%clk 0:00:06]} 39. Re6+ {[%clk 0:00:14]}  Rf6 {[%clk 0:00:04]} 40. Rxf6+ {[%clk 0:00:14]}  gxf6 {[%clk 0:00:05]} 41. Re2 {[%clk 0:00:15]}  Ra3+ {[%clk 0:00:05]} 42. Ke4 {[%clk 0:00:16]}  Ra4 {[%clk 0:00:05]} 43. Rd2 {[%clk 0:00:16]}  d5+ {[%clk 0:00:05]} 44. Kd4 {[%clk 0:00:12]}  dxc4 {[%clk 0:00:04]} 45. Nxc4 {[%clk 0:00:13]}  h5 {[%clk 0:00:03]} 46. Rc2 {[%clk 0:00:10]}  Kg5 {[%clk 0:00:03]} 47. Ke3 {[%clk 0:00:10]}  Rb4 {[%clk 0:00:03]} 48. Nd6 {[%clk 0:00:09]}  Rb3+ {[%clk 0:00:03]} 49. Kf2 {[%clk 0:00:10]}  Rb6 {[%clk 0:00:03]} 50. Ne4+ {[%clk 0:00:09]}  Kg6 {[%clk 0:00:03]} 51. Kf3 {[%clk 0:00:09]}  f5 {[%clk 0:00:03]} 52. Nc5 {[%clk 0:00:08]}  Rb5 {[%clk 0:00:04]} 53. Nd7 {[%clk 0:00:08]}  Rb3+ {[%clk 0:00:04]} 54. Kg2 {[%clk 0:00:08]}  Kg5 {[%clk 0:00:03]} 55. Rxc6 {[%clk 0:00:08]}  h4 {[%clk 0:00:04]} 56. gxh4+ {[%clk 0:00:08]}  Kxh4 {[%clk 0:00:05]} 57. Ne5 {[%clk 0:00:08]}  Kg5 {[%clk 0:00:04]} 58. Nf3+ {[%clk 0:00:07]}  Kg4 {[%clk 0:00:04]} 59. Rc4+ {[%clk 0:00:07]}  f4 {[%clk 0:00:05]} 60. Rc2 {[%clk 0:00:06]}  Rxf3 {[%clk 0:00:04]} 61. Rc8 {[%clk 0:00:05]}  Ra3 {[%clk 0:00:04]} 62. Rg8+ {[%clk 0:00:06]}  Kf5 {[%clk 0:00:05]} 63. Rf8+ {[%clk 0:00:06]}  Ke4 {[%clk 0:00:05]} 64. Re8+ {[%clk 0:00:06]}  Kd4 {[%clk 0:00:05]} 65. Kf2 {[%clk 0:00:06]}  Re3 {[%clk 0:00:02]} 66. Rxe3 {[%clk 0:00:06]}  fxe3+ {[%clk 0:00:03]} 67. Ke2 {[%clk 0:00:07]}  Ke4 {[%clk 0:00:04]} 68. Ke1 {[%clk 0:00:07]}  Kf3 {[%clk 0:00:05]} 69. Kf1 {[%clk 0:00:08]}  Kg3 {[%clk 0:00:06]} 70. Ke2 {[%clk 0:00:08]}  Kf4 {[%clk 0:00:06]} 71. Ke1 {[%clk 0:00:09]}  Kf3 {[%clk 0:00:07]} 72. Kf1 {[%clk 0:00:09]}  Kf4 {[%clk 0:00:07]} 73. Ke2 {[%clk 0:00:10]}  Ke4 {[%clk 0:00:08]} 74. Ke1 {[%clk 0:00:11]}  Kd3 {[%clk 0:00:09]} 75. Kd1 {[%clk 0:00:11]}  e2+ {[%clk 0:00:09]} 76. Ke1 {[%clk 0:00:12]}  Ke3 {[%clk 0:00:10]} 1/2-1/2


[Site "https://www.chess.com"]

[Event "Titled Tuesday Blitz July 18 Early 2023"]
[White "Akhayan, Ruben"]
[Black "Rakitic2010"]
[WhiteFideId "204439"]
[WhiteElo "2263"]
[BlackElo "2462"]
[Result "1-0"]
[Round "3"]
[TimeControl "180+2"]
[Date "2023.07.18"]
[WhiteClock "0:00:40"]
[BlackClock "0:00:15"]
[Board "182"]

1. e4 {[%clk 0:02:58]}  c5 {[%clk 0:03:00]} 2. Nf3 {[%clk 0:02:58]}  e6 {[%clk 0:02:59]} 3. g3 {[%clk 0:02:55]}  Nc6 {[%clk 0:02:59]} 4. Bg2 {[%clk 0:02:56]}  Nf6 {[%clk 0:02:59]} 5. Qe2 {[%clk 0:02:55]}  d5 {[%clk 0:03:00]} 6. exd5 {[%clk 0:02:53]}  Nxd5 {[%clk 0:03:00]} 7. O-O {[%clk 0:02:53]}  Be7 {[%clk 0:03:00]} 8. Nc3 {[%clk 0:02:53]}  O-O {[%clk 0:03:00]} 9. Ne4 {[%clk 0:02:49]}  f5 {[%clk 0:02:58]} 10. Nc3 {[%clk 0:02:47]}  Nd4 {[%clk 0:02:56]} 11. Nxd4 {[%clk 0:02:46]}  cxd4 {[%clk 0:02:56]} 12. Nxd5 {[%clk 0:02:47]}  exd5 {[%clk 0:02:57]} 13. d3 {[%clk 0:02:46]}  f4 {[%clk 0:02:55]} 14. Bxf4 {[%clk 0:02:45]}  Rxf4 {[%clk 0:02:55]} 15. gxf4 {[%clk 0:02:45]}  Bd6 {[%clk 0:02:56]} 16. Bxd5+ {[%clk 0:02:42]}  Kh8 {[%clk 0:02:55]} 17. Rae1 {[%clk 0:02:30]}  Bd7 {[%clk 0:02:47]} 18. Be6 {[%clk 0:02:29]}  Bc6 {[%clk 0:02:43]} 19. Qg4 {[%clk 0:02:17]}  Qf6 {[%clk 0:02:39]} 20. Bd7 {[%clk 0:02:09]}  Bd5 {[%clk 0:02:26]} 21. Re8+ {[%clk 0:02:06]}  Rxe8 {[%clk 0:02:24]} 22. Bxe8 {[%clk 0:02:07]}  Bxf4 {[%clk 0:02:23]} 23. Ba4 {[%clk 0:02:00]}  Qh6 {[%clk 0:02:15]} 24. h3 {[%clk 0:01:28]}  Be6 {[%clk 0:02:14]} 25. Qf3 {[%clk 0:01:28]}  Bxh3 {[%clk 0:02:03]} 26. Re1 {[%clk 0:01:19]}  Qg6+ {[%clk 0:01:02]} 27. Kh1 {[%clk 0:01:18]}  b5 {[%clk 0:00:28]} 28. Qxh3 {[%clk 0:01:07]}  Qc6+ {[%clk 0:00:25]} 29. Re4 {[%clk 0:00:59]}  bxa4 {[%clk 0:00:24]} 30. Qe6 {[%clk 0:00:45]}  Qxe6 {[%clk 0:00:19]} 31. Rxe6 {[%clk 0:00:45]}  g6 {[%clk 0:00:18]} 32. Ra6 {[%clk 0:00:44]}  Bc1 {[%clk 0:00:18]} 33. Rxa4 {[%clk 0:00:43]}  Bxb2 {[%clk 0:00:17]} 34. Rxa7 {[%clk 0:00:43]}  Bc3 {[%clk 0:00:18]} 35. a4 {[%clk 0:00:42]}  Bb4 {[%clk 0:00:17]} 36. a5 {[%clk 0:00:42]}  Bc5 {[%clk 0:00:17]} 37. Rb7 {[%clk 0:00:41]}  Kg8 {[%clk 0:00:16]} 38. a6 {[%clk 0:00:42]}  g5 {[%clk 0:00:16]} 39. a7 {[%clk 0:00:42]}  Bxa7 {[%clk 0:00:08]} 40. Rxa7 {[%clk 0:00:42]}  g4 {[%clk 0:00:08]} 41. Kg2 {[%clk 0:00:42]}  g3 {[%clk 0:00:07]} 42. Kxg3 {[%clk 0:00:42]}  h5 {[%clk 0:00:07]} 43. Kf4 {[%clk 0:00:41]}  h4 {[%clk 0:00:08]} 44. Kg4 {[%clk 0:00:40]}  h3 {[%clk 0:00:09]} 45. Kxh3 {[%clk 0:00:40]}  Kf8 {[%clk 0:00:09]} 46. Kg4 {[%clk 0:00:40]}  Ke8 {[%clk 0:00:10]} 47. Kf5 {[%clk 0:00:41]}  Kd8 {[%clk 0:00:11]} 48. Ke6 {[%clk 0:00:41]}  Kc8 {[%clk 0:00:12]} 49. Kd6 {[%clk 0:00:41]}  Kb8 {[%clk 0:00:13]} 50. Rg7 {[%clk 0:00:41]}  Kc8 {[%clk 0:00:14]} 51. Rh7 {[%clk 0:00:40]}  Kd8 {[%clk 0:00:15]} 52. Rh8# {[%clk 0:00:40]} 1-0


[Site "https://www.chess.com"]